bitfinex-derivatives/quotes_BTCF0:USTF0_20251125
["timestamp","ask_amount","ask_price","bid_price","bid_amount"]
[1764063003238,0.47355165,86779.0,86778.0,0.03429]
[1764063003946,0.47355165,86779.0,86778.0,0.14243]
[1764063005335,0.02355165,86779.0,86778.0,0.14243]
[1764063005540,0.02355165,86780.0,86778.0,0.14243]
[1764063005743,0.0115262,86781.0,86780.0,0.10814]
[1764063005941,0.4415262,86781.0,86780.0,0.10814]
[1764063006142,0.46510126,86781.0,86780.0,0.10814]
[1764063006950,0.47934628,86781.0,86780.0,0.10814]
[1764063009750,0.52934628,86781.0,86780.0,0.10814]
[1764063011143,0.51782008,86781.0,86780.0,0.10814]
[1764063012545,0.02357506,86781.0,86780.0,0.10814]
[1764063012744,0.00017283,86789.0,86788.0,0.10712]
[1764063012948,0.28017283,86789.0,86788.0,0.10712]
[1764063013549,0.2946972,86789.0,86788.0,0.10712]
[1764063014146,0.2956972,86789.0,86788.0,0.10712]
[1764063014553,0.3456972,86789.0,86788.0,0.10712]
[1764063014952,0.43850152,86789.0,86788.0,0.10712]
[1764063015553,0.0656972,86789.0,86788.0,0.10712]
[1764063015765,0.15426963,86819.0,86803.0,0.10712]
[1764063015766,0.081551,86808.0,86803.0,0.10712]
[1764063016054,0.081551,86810.0,86803.0,0.10712]
[1764063016254,0.09827384,86813.0,86803.0,0.10712]
[1764063016651,0.47581993,86804.0,86803.0,0.10712]
[1764063016850,0.4615231,86804.0,86803.0,0.10712]
[1764063017046,0.00017283,86812.0,86803.0,0.05415]
[1764063017247,0.02607351,86825.0,86824.0,0.10712]
[1764063017445,0.03481,86831.0,86826.0,0.03162]
[1764063017647,0.12831239,86834.0,86833.0,0.10712]
[1764063017948,0.44399704,86834.0,86833.0,0.10712]
[1764063018150,0.39481,86834.0,86833.0,0.10712]
[1764063018355,0.0115178,86844.0,86842.0,0.03162]
[1764063018652,0.00017272,86852.0,86851.0,0.10712]
[1764063018852,0.0115164,86854.0,86853.0,0.10712]
[1764063019252,0.00017272,86860.0,86849.0,0.03162]
[1764063019253,0.0115159,86858.0,86849.0,0.03162]
[1764063019458,0.5311359,86858.0,86857.0,0.10712]
[1764063020163,0.0811369,86850.0,86849.0,0.13874]
[1764063020460,0.2811369,86850.0,86849.0,0.13874]
[1764063021570,0.01423258,86859.0,86858.0,0.10712]
[1764063021856,0.03498272,86860.0,86859.0,0.10712]
[1764063022055,0.03498272,86860.0,86856.0,0.03162]
[1764063022056,0.0115157,86859.0,86856.0,0.03162]
[1764063022355,0.03481,86850.0,86849.0,0.13874]
[1764063022553,0.0811362,86856.0,86855.0,0.10712]
[1764063022751,0.3811362,86856.0,86855.0,0.10712]
[1764063023154,0.03481,86856.0,86855.0,0.10712]
[1764063023657,0.07062,86856.0,86855.0,0.10712]
[1764063023959,0.45062,86856.0,86855.0,0.10712]
[1764063024256,0.22062,86856.0,86855.0,0.10712]
[1764063024658,0.41062,86856.0,86855.0,0.10712]
[1764063024858,0.15162,86856.0,86855.0,0.10712]
[1764063025254,0.07162,86856.0,86855.0,0.10712]
[1764063025462,0.44162,86856.0,86855.0,0.10712]
[1764063027158,0.002,86856.0,86855.0,0.10712]
[1764063027554,0.48162,86856.0,86855.0,0.10712]
[1764063029353,0.17681,86856.0,86855.0,0.10712]
[1764063029553,0.142,86856.0,86855.0,0.10712]
[1764063029952,0.002,86856.0,86855.0,0.10712]
[1764063030366,0.48162,86856.0,86855.0,0.10712]
[1764063030763,0.14162,86856.0,86855.0,0.10712]
[1764063031063,0.44162,86856.0,86855.0,0.10712]
[1764063031256,0.13681,86856.0,86855.0,0.10712]
[1764063031565,0.46162,86856.0,86855.0,0.10712]
[1764063032760,0.0811369,86850.0,86849.0,0.13874]
[1764063032959,0.0811377,86844.0,86843.0,0.10729272]
[1764063033267,0.06962,86844.0,86843.0,0.10729272]
[1764063033462,0.48962,86844.0,86843.0,0.10729272]
[1764063033664,0.12962,86844.0,86843.0,0.10729272]
[1764063034459,0.35962,86844.0,86843.0,0.10729272]
[1764063035266,0.29,86844.0,86843.0,0.10729272]
[1764063035463,0.16789384,86853.0,86852.0,0.10712]
[1764063035668,0.42478476,86853.0,86852.0,0.10712]
[1764063035869,0.0811377,86844.0,86843.0,0.05314272]
[1764063036166,0.5611377,86844.0,86843.0,0.00017272]
[1764063036369,0.49479244,86844.0,86843.0,0.10729272]
[1764063039171,0.58479244,86844.0,86843.0,0.10729272]
[1764063039666,0.49479244,86844.0,86843.0,0.10729272]
[1764063040571,0.09327474,86844.0,86843.0,0.10729272]
[1764063040779,0.45846474,86844.0,86843.0,0.10729272]
[1764063040967,0.11846474,86844.0,86843.0,0.10729272]
[1764063041371,0.02365474,86844.0,86843.0,0.10729272]
[1764063041573,0.0651363,86855.0,86854.0,0.09999]
[1764063041870,0.17890997,86855.0,86854.0,0.09999]
[1764063042264,0.11377367,86855.0,86854.0,0.09999]
[1764063042464,0.02377367,86855.0,86854.0,0.09999]
[1764063042860,0.02477367,86855.0,86854.0,0.09999]
[1764063043072,0.05158367,86855.0,86854.0,0.09999]
[1764063043565,0.02577367,86855.0,86854.0,0.09999]
[1764063044468,0.002,86855.0,86854.0,0.09999]
[1764063044664,0.00017272,86860.0,86859.0,0.09999]
[1764063046169,0.00117272,86860.0,86859.0,0.09999]
[1764063046375,0.00217272,86860.0,86859.0,0.09999]
[1764063047074,0.03098272,86860.0,86859.0,0.09999]
[1764063047675,0.43979272,86860.0,86859.0,0.09999]
[1764063048378,0.05762,86857.0,86856.0,0.07824]
[1764063048579,0.49762,86857.0,86856.0,0.12898]
[1764063048764,0.05762,86857.0,86856.0,0.12898]
[1764063048966,0.00217272,86860.0,86856.0,0.12898]
[1764063049173,0.00217272,86860.0,86859.0,0.09999]
[1764063049371,0.00117272,86860.0,86859.0,0.09999]
[1764063049567,0.00017272,86860.0,86859.0,0.09999]
[1764063049775,0.06930832,86860.0,86859.0,0.09999]
[1764063049975,0.44930832,86860.0,86859.0,0.09999]
[1764063050278,0.45030832,86860.0,86859.0,0.09999]
[1764063050881,0.16030832,86860.0,86859.0,0.09999]
[1764063051182,0.46030832,86860.0,86859.0,0.09999]
[1764063051483,0.45030832,86860.0,86859.0,0.09999]
[1764063051976,0.45030832,86860.0,86849.0,0.02899]
[1764063051977,0.05762,86850.0,86849.0,0.12898]
[1764063052881,0.50762,86850.0,86849.0,0.12898]
[1764063053885,0.05762,86844.0,86843.0,0.10016272]
[1764063054083,0.5406887,86844.0,86843.0,0.10016272]
[1764063054285,0.1791377,86844.0,86843.0,0.10016272]
[1764063054581,0.0691377,86844.0,86843.0,0.10016272]
[1764063054773,0.4991377,86844.0,86843.0,0.10016272]
[1764063055270,0.5806887,86844.0,86843.0,0.10016272]
[1764063055474,0.4991377,86844.0,86843.0,0.10016272]
[1764063055874,0.5491377,86844.0,86843.0,0.10016272]
[1764063056070,0.1191377,86844.0,86843.0,0.10016272]
[1764063056375,0.02378482,86844.0,86843.0,0.10016272]
[1764063056578,0.10531036,86844.0,86843.0,0.10016272]
[1764063056883,0.08152554,86847.0,86846.0,0.09598]
[1764063057078,0.09304284,86847.0,86846.0,0.09598]
[1764063057380,0.14062858,86847.0,86846.0,0.09598]
[1764063058875,0.09497252,86853.0,86852.0,0.09598]
[1764063059079,0.5391165,86853.0,86852.0,0.09598]
[1764063059283,0.4491165,86853.0,86852.0,0.09598]
[1764063059978,0.1976,86853.0,86852.0,0.09598]
[1764063060575,0.4376,86853.0,86852.0,0.09598]
[1764063061779,0.06,86853.0,86852.0,0.09598]
[1764063061979,0.0115165,86854.0,86848.0,0.02833]
[1764063061980,0.0115164,86854.0,86853.0,0.09598]
[1764063062181,0.4015164,86854.0,86853.0,0.09598]
[1764063063270,0.0425164,86854.0,86853.0,0.09598]
[1764063063684,0.3925164,86854.0,86853.0,0.09598]
[1764063064087,0.0115177,86844.0,86843.0,0.09615272]
[1764063064279,0.4115177,86844.0,86843.0,0.09615272]
[1764063064479,0.1615177,86844.0,86843.0,0.09615272]
[1764063065079,0.0151577,86844.0,86843.0,0.09415272]
[1764063065285,0.4351577,86844.0,86843.0,0.09415272]
[1764063065780,0.00364,86843.0,86842.0,0.03162]
[1764063065987,0.38364,86843.0,86842.0,0.03162]
[1764063066172,0.43364,86843.0,86842.0,0.03162]
[1764063066684,0.00364,86836.0,86834.0,0.00017272]
[1764063066884,0.48755478,86836.0,86835.0,0.08137]
[1764063067081,0.24907358,86836.0,86835.0,0.1276]
[1764063067386,0.49907358,86836.0,86835.0,0.1276]
[1764063067978,0.4051588,86836.0,86835.0,0.1276]
[1764063068281,0.48683625,86836.0,86835.0,0.1276]
[1764063068481,0.0151576,86846.0,86840.0,0.02833]
[1764063068675,0.39364,86846.0,86845.0,0.09598]
[1764063068875,0.48321315,86846.0,86845.0,0.09598]
[1764063069184,0.00182,86849.0,86848.0,0.12431]
[1764063069385,0.39364,86849.0,86848.0,0.12431]
[1764063069785,0.4051571,86849.0,86848.0,0.12431]
[1764063069988,0.4051571,86849.0,86848.0,0.02833]
[1764063070584,0.0151581,86841.0,86840.0,0.12431]
[1764063070782,0.4051581,86841.0,86840.0,0.12431]
[1764063070987,0.42857403,86841.0,86840.0,0.12431]
[1764063072678,0.42857403,86841.0,86840.0,0.07808]
[1764063072886,0.0395788,86836.0,86835.0,0.12493]
[1764063073180,0.44299473,86836.0,86835.0,0.07809]
[1764063073790,0.44299473,86836.0,86835.0,0.12493]
[1764063074492,0.03744593,86836.0,86835.0,0.12493]
[1764063074676,0.20341593,86836.0,86835.0,0.12493]
[1764063074880,0.45341593,86836.0,86835.0,0.12493]
[1764063075090,0.10744593,86836.0,86835.0,0.12493]
[1764063075291,0.37896473,86836.0,86835.0,0.12493]
[1764063075490,0.39299473,86836.0,86835.0,0.12493]
[1764063075791,0.06341593,86836.0,86835.0,0.12493]
[1764063075998,0.02341593,86836.0,86835.0,0.12493]
[1764063077402,0.0115176,86845.0,86844.0,0.09331]
[1764063077598,0.0634247,86845.0,86844.0,0.09331]
[1764063077795,0.0234247,86845.0,86844.0,0.09331]
[1764063078000,0.0349423,86845.0,86844.0,0.09331]
[1764063078692,0.0449423,86845.0,86844.0,0.09331]
[1764063078893,0.0234247,86845.0,86844.0,0.09331]
[1764063079101,0.0234247,86845.0,86844.0,0.1048277]
[1764063079287,4.7e-06,86845.0,86844.0,0.1048277]
[1764063079693,4.7e-06,86845.0,86844.0,0.09331]
[1764063081912,4.7e-06,86845.0,86844.0,0.1048277]
[1764063082114,4.7e-06,86845.0,86844.0,0.09331]
[1764063087311,0.0374547,86845.0,86844.0,0.09331]
[1764063087515,0.0749047,86845.0,86844.0,0.09331]
[1764063087814,0.4449047,86845.0,86844.0,0.04647]
[1764063088007,0.09707,86841.0,86840.0,0.07925]
[1764063088203,0.5585881,86841.0,86840.0,0.12572]
[1764063088916,0.2985881,86841.0,86840.0,0.12572]
[1764063089308,0.1085881,86841.0,86840.0,0.12572]
[1764063090518,0.0611478,86844.0,86843.0,0.09331]
[1764063091214,0.13194021,86844.0,86843.0,0.09331]
[1764063092521,0.12042241,86844.0,86843.0,0.09331]
[1764063100121,0.02335241,86844.0,86843.0,0.09331]
[1764063100425,0.108586,86857.0,86856.0,0.12572]
[1764063100723,0.20199009,86857.0,86856.0,0.09331]
[1764063100917,0.1078369,86850.0,86849.0,0.13469]
[1764063101315,0.1078369,86850.0,86849.0,0.13269]
[1764063101912,0.09632,86850.0,86849.0,0.13269]
[1764063102719,0.09732,86850.0,86849.0,0.13269]
[1764063103527,0.09632,86850.0,86849.0,0.13269]
[1764063105214,0.09139224,86857.0,86849.0,0.13269]
[1764063105215,0.19130224,86857.0,86856.0,0.13584]
[1764063105414,0.09991,86857.0,86856.0,0.13584]
[1764063105623,0.18144067,86857.0,86856.0,0.13584]
[1764063105825,0.09991,86857.0,86856.0,0.13584]
[1764063106521,0.001,86857.0,86856.0,0.13584]
[1764063108634,0.00017272,86858.0,86857.0,0.113796]
[1764063109831,0.00117272,86858.0,86857.0,0.113796]
[1764063110226,0.00117272,86858.0,86857.0,0.10228]
[1764063110631,0.05133272,86858.0,86857.0,0.10228]
[1764063110927,0.10108272,86858.0,86857.0,0.10228]
[1764063112232,0.02430889,86858.0,86857.0,0.10228]
[1764063113026,0.07446889,86858.0,86857.0,0.10228]
[1764063113226,0.12421889,86858.0,86857.0,0.10228]
[1764063113427,0.01135476,86864.0,86863.0,0.13584]
[1764063113626,0.08153067,86867.0,86863.0,0.13584]
[1764063114029,0.0980939,86870.0,86868.0,0.03356]
[1764063114235,0.0980939,86870.0,86868.0,0.08473]
[1764063114436,0.01382905,86871.0,86868.0,0.08473]
[1764063114638,0.08170339,86878.0,86868.0,0.13584]
[1764063114836,0.09539765,86878.0,86868.0,0.13584]
[1764063115034,0.09539765,86878.0,86874.0,0.08473]
[1764063115035,0.11511586,86877.0,86874.0,0.08473]
[1764063115442,0.11511586,86877.0,86874.0,0.03356]
[1764063116344,0.11611586,86877.0,86874.0,0.03356]
[1764063117942,0.11611586,86877.0,86874.0,0.09502]
[1764063118238,0.11611586,86877.0,86874.0,0.15413]
[1764063118535,0.11611586,86877.0,86875.0,0.12057]
[1764063118740,0.11611586,86877.0,86876.0,0.12057]
[1764063118741,0.001,86877.0,86876.0,0.12057]
[1764063121443,0.28922457,86900.0,86898.0,0.09837]
[1764063121630,0.52,86900.0,86898.0,0.09837]
[1764063121835,0.53395624,86900.0,86899.0,0.12057]
[1764063122942,0.53495624,86900.0,86899.0,0.12057]
[1764063124344,0.00017261,86908.0,86907.0,0.12057]
[1764063124643,0.36017261,86908.0,86907.0,0.12057]
[1764063124844,0.37398607,86908.0,86907.0,0.12057]
[1764063125549,0.39694703,86908.0,86907.0,0.12057]
[1764063126240,0.39794703,86908.0,86907.0,0.12057]
[1764063131544,0.44794703,86908.0,86907.0,0.12057]
[1764063131743,0.44794703,86908.0,86905.0,0.03691]
[1764063132047,0.02296096,86907.0,86905.0,0.1575]
[1764063132250,0.02296096,86906.0,86905.0,0.1575]
[1764063132551,0.54296096,86906.0,86905.0,0.1575]
[1764063132750,0.54296096,86906.0,86905.0,0.1555]
[1764063133339,0.54296096,86906.0,86898.0,0.03691]
[1764063133546,0.02296096,86905.0,86898.0,0.09661]
[1764063133743,0.02296096,86904.0,86898.0,0.09661]
[1764063133945,0.02296096,86903.0,86898.0,0.1575]
[1764063134145,0.02296096,86902.0,86898.0,0.1575]
[1764063134350,0.02296096,86901.0,86898.0,0.1575]
[1764063134549,0.02296096,86900.0,86899.0,0.12059]
[1764063134848,0.56296096,86900.0,86898.0,0.1575]
[1764063135050,0.02296096,86899.0,86898.0,0.1575]
[1764063135255,0.001,86903.0,86902.0,0.1321]
[1764063135441,0.01398607,86908.0,86902.0,0.12059]
[1764063135646,0.13017261,86908.0,86907.0,0.12059]
[1764063136758,0.00017261,86908.0,86907.0,0.12059]
[1764063137750,0.00117261,86908.0,86907.0,0.12059]
[1764063138166,0.37117261,86908.0,86907.0,0.12059]
[1764063139269,0.00117261,86908.0,86907.0,0.1320994]
[1764063140658,0.00117261,86908.0,86907.0,0.12059]
[1764063141272,0.00017261,86908.0,86907.0,0.12059]
[1764063143566,0.54125261,86908.0,86907.0,0.12059]
[1764063146465,0.00017261,86908.0,86907.0,0.12059]
[1764063147267,0.02295349,86908.0,86907.0,0.12059]
[1764063147476,0.08340349,86908.0,86907.0,0.12059]
[1764063148278,0.51403349,86908.0,86907.0,0.12059]
[1764063149273,0.21340349,86908.0,86907.0,0.12059]
[1764063149478,0.15295349,86908.0,86907.0,0.12059]
[1764063150179,0.46340349,86908.0,86907.0,0.12059]
[1764063150562,0.52403349,86908.0,86907.0,0.12059]
[1764063151776,0.34136167,86908.0,86907.0,0.12059]
[1764063151976,0.28073167,86908.0,86907.0,0.12059]
[1764063152177,0.13261067,86918.0,86917.0,0.12059]
[1764063152380,0.52108,86918.0,86917.0,0.12059]
[1764063153175,0.60278676,86918.0,86917.0,0.12059]
[1764063153979,0.05108,86917.0,86916.0,0.03472]
[1764063154277,0.53108,86917.0,86916.0,0.15531]
[1764063154870,0.05108,86911.0,86910.0,0.15531]
[1764063155066,0.05108,86910.0,86909.0,0.00017261]
[1764063155266,0.49108,86910.0,86909.0,0.00017261]
[1764063155680,0.49108,86910.0,86909.0,0.05987261]
[1764063155981,0.54108,86910.0,86909.0,0.12076261]
[1764063157380,0.54108,86910.0,86909.0,0.05987261]
[1764063157567,0.54108,86910.0,86909.0,0.00017261]
[1764063157772,0.54108,86910.0,86909.0,0.05987261]
[1764063157972,0.54108,86910.0,86909.0,0.12076261]
[1764063158972,0.49108,86910.0,86909.0,0.12076261]
[1764063159175,0.46554,86910.0,86909.0,0.12076261]
[1764063159772,0.32955805,86919.0,86918.0,0.12059]
[1764063159975,0.80955805,86919.0,86918.0,0.12059]
[1764063160473,0.92462026,86919.0,86918.0,0.12059]
[1764063160767,0.05108,86917.0,86916.0,0.0597]
[1764063160975,0.55108,86917.0,86916.0,0.0597]
[1764063161282,0.55108,86917.0,86916.0,0.11444]
[1764063161685,0.55108,86917.0,86916.0,0.14988]
[1764063163881,0.57380868,86917.0,86916.0,0.14988]
[1764063164077,0.57380868,86917.0,86916.0,0.03349053]
[1764063164278,0.57380868,86917.0,86910.0,0.14807]
[1764063164279,0.11686,86911.0,86910.0,0.14807]
[1764063164579,0.53958868,86911.0,86910.0,0.14807]
[1764063165781,0.53958868,86911.0,86910.0,0.11335]
[1764063166783,0.11686,86910.0,86909.0,0.00017261]
[1764063167094,0.11686,86881.0,86880.0,0.14879]
[1764063167386,0.58958868,86881.0,86880.0,0.14879]
[1764063167583,0.58958868,86881.0,86880.0,0.11335]
[1764063168988,0.67958868,86881.0,86880.0,0.11335]
[1764063169283,0.67958868,86881.0,86872.0,0.00017261]
[1764063169284,0.11686,86873.0,86872.0,0.00017261]
[1764063169587,0.11686,86850.0,86849.0,0.14879]
[1764063169790,0.58958868,86850.0,86849.0,0.14879]
[1764063170184,0.11686,86843.0,86842.0,0.14879]
[1764063170397,0.49686,86843.0,86842.0,0.14879]
[1764063170889,0.49686,86843.0,86835.0,0.03544]
[1764063170890,0.11686,86836.0,86835.0,0.14879]
[1764063171099,0.50951776,86836.0,86835.0,0.14879]
[1764063171292,0.48686,86836.0,86835.0,0.14879]
[1764063172494,0.48686,86836.0,86835.0,0.15079]
[1764063172886,0.11686,86836.0,86835.0,0.15179]
[1764063173284,0.0115177,86845.0,86844.0,0.11335]
[1764063173488,0.00017271,86851.0,86850.0,0.1248669]
[1764063173786,0.1283723,86885.0,86884.0,0.05861]
[1764063173988,0.55260339,86885.0,86884.0,0.05861]
[1764063174291,0.11686,86881.0,86880.0,0.09405]
[1764063174594,0.48686,86881.0,86880.0,0.14879]
[1764063174784,0.48686,86881.0,86872.0,0.03561271]
[1764063174990,0.11686,86873.0,86872.0,0.14896271]
[1764063175190,0.48686,86873.0,86872.0,0.14896271]
[1764063175390,0.48686,86873.0,86872.0,0.00017271]
[1764063176001,0.11686,86865.0,86864.0,0.03544]
[1764063176193,0.11686,86857.0,86856.0,0.14879]
[1764063176393,0.53686,86857.0,86856.0,0.14879]
[1764063176594,0.42,86857.0,86856.0,0.14879]
[1764063176802,0.11,86857.0,86856.0,0.14879]
[1764063177501,0.00017271,86865.0,86864.0,0.11763]
[1764063177702,0.32017271,86865.0,86864.0,0.11763]
[1764063177899,0.13741991,86865.0,86864.0,0.11763]
[1764063178099,0.03452,86895.0,86869.0,0.0115143]
[1764063178404,0.03452,86895.0,86856.0,0.03644]
[1764063178405,0.36950383,86895.0,86868.0,0.01998]
[1764063178703,0.36950383,86895.0,86872.0,0.0115139]
[1764063178898,0.36950383,86895.0,86877.0,0.0115133]
[1764063178899,0.00017271,86892.0,86877.0,0.0115133]
[1764063179201,0.11996271,86892.0,86891.0,0.1173]
[1764063179400,0.00017271,86892.0,86891.0,0.1173]
[1764063179897,0.06023271,86892.0,86891.0,0.1173]
[1764063180105,0.11996271,86892.0,86891.0,0.1173]
[1764063180505,0.49996271,86892.0,86877.0,0.03544]
[1764063181210,0.50096271,86892.0,86877.0,0.03544]
[1764063181798,0.49996271,86892.0,86877.0,0.03544]
[1764063182105,0.50096271,86892.0,86877.0,0.03544]
[1764063182699,0.49996271,86892.0,86877.0,0.03544]
[1764063182903,0.49996271,86892.0,86878.0,0.0115132]
[1764063183703,0.58996271,86892.0,86878.0,0.0115132]
[1764063184295,0.58996271,86892.0,86881.0,0.0115127]
[1764063184501,0.21096271,86892.0,86881.0,0.0115127]
[1764063184917,0.57096271,86892.0,86877.0,0.03544]
[1764063185504,0.53102271,86892.0,86891.0,0.05828]
[1764063186007,0.53002271,86892.0,86891.0,0.05828]
[1764063187304,0.44002271,86892.0,86891.0,0.05828]
[1764063187811,0.44102271,86892.0,86891.0,0.05828]
[1764063188010,0.44202271,86892.0,86891.0,0.05828]
[1764063188712,0.44202271,86892.0,86877.0,0.03544]
[1764063189016,0.44202271,86892.0,86878.0,0.0115131]
[1764063189409,0.44202271,86892.0,86881.0,0.0115128]
[1764063189599,0.002,86892.0,86891.0,0.1288115]
[1764063190204,0.002,86892.0,86891.0,0.1268115]
[1764063190808,0.001,86892.0,86891.0,0.1268115]
[1764063191113,0.06017431,86900.0,86899.0,0.11678]
[1764063191909,0.00011431,86900.0,86899.0,0.11678]
[1764063192815,0.12310431,86900.0,86899.0,0.11678]
[1764063194012,0.14711521,86900.0,86899.0,0.11678]
[1764063194224,0.00011431,86900.0,86899.0,0.11678]
[1764063194531,0.02412611,86900.0,86899.0,0.11678]
[1764063194919,0.00011431,86900.0,86899.0,0.11678]
[1764063196032,0.06149431,86900.0,86899.0,0.11678]
[1764063196928,0.08550572,86900.0,86899.0,0.11678]
[1764063197320,0.00011431,86900.0,86899.0,0.11678]
[1764063200831,0.12310431,86900.0,86899.0,0.11678]
[1764063202324,0.597135,86900.0,86899.0,0.11678]
[1764063202718,0.337135,86900.0,86899.0,0.11678]
[1764063204930,0.337135,86900.0,86899.0,0.1282904]
[1764063205123,0.337135,86900.0,86899.0,0.11678]
[1764063205825,0.147135,86900.0,86899.0,0.11678]
[1764063208726,0.517135,86900.0,86899.0,0.05828]
[1764063209626,0.517135,86900.0,86899.0,0.11678]
[1764063210442,0.12299,86889.0,86888.0,0.15203]
[1764063210629,0.14702069,86889.0,86888.0,0.1635419]
[1764063211334,0.14702069,86889.0,86888.0,0.11583]
[1764063212229,0.14702069,86889.0,86888.0,0.1273419]
[1764063215337,0.0178722,86912.0,86888.0,0.11583]
[1764063215529,0.5278722,86912.0,86888.0,0.11583]
[1764063215725,0.5278722,86912.0,86889.0,0.0115117]
[1764063215931,0.00235,86890.0,86889.0,0.11583]
[1764063216131,0.01608788,86910.0,86889.0,0.11583]
[1764063216327,0.54,86910.0,86889.0,0.11583]
[1764063216541,0.00235,86890.0,86889.0,0.11583]
[1764063218838,0.0047,86895.0,86894.0,0.127341]
[1764063219937,0.0047,86895.0,86894.0,0.125341]
[1764063220138,0.0047,86895.0,86894.0,0.11583]
[1764063220637,0.0047,86895.0,86892.0,0.04076]
[1764063220638,0.0047,86893.0,86892.0,0.04076]
[1764063220841,0.4347,86893.0,86892.0,0.04076]
[1764063221940,0.00606,86887.0,86886.0,0.12224261]
[1764063222135,0.18606,86887.0,86886.0,0.12224261]
[1764063222530,0.42606,86887.0,86886.0,0.12224261]
[1764063223240,0.42706,86887.0,86886.0,0.12224261]
[1764063223425,0.21706,86887.0,86886.0,0.12224261]
[1764063224943,0.41706,86887.0,86886.0,0.12224261]
[1764063225838,0.41606,86887.0,86886.0,0.12224261]
[1764063226436,0.41606,86887.0,86886.0,0.05750261]
[1764063226635,0.41606,86887.0,86886.0,0.06744261]
[1764063227045,0.41706,86887.0,86886.0,0.06744261]
[1764063227343,0.02496214,86887.0,86886.0,0.13218261]
[1764063227643,2.14e-06,86887.0,86886.0,0.13218261]
[1764063227940,0.01646845,86910.0,86909.0,0.13201]
[1764063228136,0.02867,86910.0,86909.0,0.13201]
[1764063228336,0.0449581,86910.0,86909.0,0.13201]
[1764063229034,0.0162881,86910.0,86909.0,0.13201]
[1764063229237,0.05734,86927.0,86926.0,0.03859]
[1764063229545,0.09974,86920.0,86919.0,0.1706]
[1764063229741,0.09974,86920.0,86918.0,0.00017261]
[1764063229742,0.09974,86919.0,86918.0,0.00017261]
[1764063229943,0.58974,86919.0,86918.0,0.00017261]
[1764063231134,0.09974,86899.0,86898.0,0.13201]
[1764063231338,0.09974,86892.0,86891.0,0.06727]
[1764063231543,0.54974,86892.0,86891.0,0.06727]
[1764063231743,0.09974,86885.0,86884.0,0.1706]
[1764063231939,0.50974,86885.0,86884.0,0.1706]
[1764063232847,0.09974,86878.0,86877.0,0.1706]
[1764063233244,0.52974,86878.0,86877.0,0.1706]
[1764063235547,0.31974,86878.0,86877.0,0.1706]
[1764063238247,0.33564102,86878.0,86877.0,0.1706]
[1764063238550,0.31974,86878.0,86877.0,0.1706]
[1764063238745,0.22,86878.0,86877.0,0.1706]
[1764063239048,0.08923227,86893.0,86892.0,0.12639]
[1764063239252,0.53923227,86893.0,86892.0,0.12639]
[1764063239643,0.5630164,86893.0,86892.0,0.12639]
[1764063239844,0.5230164,86893.0,86892.0,0.12639]
[1764063240049,0.53952906,86893.0,86892.0,0.12639]
[1764063241853,0.54052906,86893.0,86892.0,0.12639]
[1764063242446,0.38052906,86893.0,86892.0,0.12639]
[1764063244649,0.33599906,86893.0,86892.0,0.12639]
[1764063245258,0.38052906,86893.0,86892.0,0.12639]
[1764063247756,0.38052906,86893.0,86892.0,0.1379014]
[1764063248356,0.38052906,86893.0,86892.0,0.12639]
[1764063248861,0.13052906,86893.0,86892.0,0.12639]
[1764063249056,0.04146906,86893.0,86892.0,0.12639]
[1764063249761,0.08906,86910.0,86909.0,0.12639]
[1764063250055,0.49509102,86910.0,86909.0,0.12639]
[1764063251871,0.12454,86905.0,86904.0,0.16756]
[1764063252058,0.54454,86905.0,86904.0,0.16756]
[1764063254258,0.12454,86905.0,86904.0,0.16756]
[1764063254459,0.18454,86905.0,86904.0,0.16756]
[1764063256169,0.14057102,86910.0,86909.0,0.12887]
[1764063256370,0.40057102,86910.0,86909.0,0.12887]
[1764063258672,0.40057102,86910.0,86909.0,0.06453]
[1764063259064,0.40057102,86910.0,86909.0,0.12887]
[1764063259976,0.40057102,86910.0,86904.0,0.12887]
[1764063259977,0.12454,86905.0,86904.0,0.12887]
[1764063260275,0.49454,86905.0,86904.0,0.16642]
[1764063261069,0.25454,86905.0,86904.0,0.16642]
[1764063261264,0.12554,86905.0,86904.0,0.16642]
[1764063261774,0.14915804,86905.0,86904.0,0.16642]
[1764063262367,0.08688804,86905.0,86904.0,0.16642]
[1764063262671,0.08588804,86905.0,86904.0,0.16642]
[1764063264775,0.02361804,86905.0,86904.0,0.16642]
[1764063269886,0.16081544,86930.0,86929.0,0.06453]
[1764063270090,0.16081544,86930.0,86929.0,0.12887]
[1764063270091,0.54579,86930.0,86929.0,0.12887]
[1764063270792,0.54579,86930.0,86929.0,0.12687]
[1764063270994,0.25187424,86930.0,86929.0,0.12687]
[1764063271587,0.23287424,86930.0,86929.0,0.12687]
[1764063271788,0.61287424,86930.0,86929.0,0.12687]
[1764063272094,0.52287424,86930.0,86929.0,0.12687]
[1764063275292,0.001,86930.0,86929.0,0.1383765]
[1764063275496,0.02429,86958.0,86938.0,0.0115052]
[1764063275696,0.22376544,86950.0,86949.0,0.12887]
[1764063275997,0.57328219,86950.0,86949.0,0.12887]
[1764063276293,0.12579,86941.0,86940.0,0.12887]
[1764063276590,0.56579,86941.0,86940.0,0.12887]
[1764063277181,0.56579,86941.0,86940.0,0.16642]
[1764063278288,0.08133219,86950.0,86949.0,0.12887]
[1764063278491,0.14428219,86950.0,86949.0,0.12887]
[1764063278693,0.14328219,86950.0,86949.0,0.12887]
[1764063279394,0.08033219,86950.0,86949.0,0.12887]
[1764063279598,0.14328219,86950.0,86949.0,0.12887]
[1764063280690,0.06284,86957.0,86956.0,0.1403729]
[1764063280990,0.10284,86957.0,86956.0,0.1403729]
[1764063281186,0.06284,86957.0,86956.0,0.1403729]
[1764063281395,0.56321237,86957.0,86956.0,0.12887]
[1764063281997,0.58655932,86957.0,86956.0,0.12887]
[1764063282199,0.58755932,86957.0,86956.0,0.12887]
[1764063282392,0.31755932,86957.0,86956.0,0.12887]
[1764063283097,0.43755932,86957.0,86956.0,0.12887]
[1764063283296,0.16755932,86957.0,86956.0,0.12887]
[1764063283899,0.15013695,86957.0,86956.0,0.12887]
[1764063284389,0.14248695,86957.0,86956.0,0.12887]
[1764063285101,0.16001282,86957.0,86956.0,0.12887]